[Event "*** Titled Tuesday Blitz"]
[Site "Chess.com"]
[Date "2020.02.04"]
[Round "2"]
[White "masterofpuppets2"]
[Black "Siemba"]
[Result "1-0"]
[WhiteElo "2472"]
[BlackElo "2193"]
[TimeControl "180+2"]
[EndTime "13:27:02 PST"]
[Termination "masterofpuppets2 won by resignation"]

1. d4 {[%clk 0:03:01.9]} 1... d5 {[%clk 0:02:58.8]} 2. c4 {[%clk 0:03:02.5]}
2... c6 {[%clk 0:02:58.9]} 3. Nf3 {[%clk 0:03:03.4]} 3... Nf6 {[%clk 0:02:58.9]}
4. Nc3 {[%clk 0:03:04.4]} 4... e6 {[%clk 0:02:59.2]} 5. cxd5 {[%clk 0:03:04.5]}
5... exd5 {[%clk 0:02:59.6]} 6. Qc2 {[%clk 0:03:05.6]} 6... g6 {[%clk
0:03:00.3]} 7. Bg5 {[%clk 0:03:06]} 7... Bg7 {[%clk 0:03:00.3]} 8. e3 {[%clk
0:03:02.5]} 8... O-O {[%clk 0:02:59.5]} 9. Bd3 {[%clk 0:03:02.6]} 9... Nbd7
{[%clk 0:02:54.8]} 10. O-O {[%clk 0:03:02.4]} 10... h6 {[%clk 0:02:52.6]} 11.
Bh4 {[%clk 0:03:02.7]} 11... Re8 {[%clk 0:02:45.5]} 12. h3 {[%clk 0:03:03.2]}
12... Nf8 {[%clk 0:02:45.1]} 13. Ne5 {[%clk 0:03:02.4]} 13... g5 {[%clk
0:02:44.8]} 14. Bg3 {[%clk 0:03:02.8]} 14... N6d7 {[%clk 0:02:44.1]} 15. f4
{[%clk 0:03:00.9]} 15... f6 {[%clk 0:02:32.8]} 16. Nxd7 {[%clk 0:02:42.7]} 16...
Bxd7 {[%clk 0:02:23.1]} 17. fxg5 {[%clk 0:02:33.3]} 17... fxg5 {[%clk
0:02:03.2]} 18. Rf3 {[%clk 0:02:24.9]} 18... g4 {[%clk 0:01:59.7]} 19. hxg4
{[%clk 0:02:25.2]} 19... Bxg4 {[%clk 0:02:01.6]} 20. Rf4 {[%clk 0:02:26.5]}
20... h5 {[%clk 0:01:53]} 21. Raf1 {[%clk 0:02:14.4]} 21... Qe7 {[%clk
0:01:35.8]} 22. e4 {[%clk 0:01:50.8]} 22... Bxd4+ {[%clk 0:01:31.4]} 23. Kh1
{[%clk 0:01:51.4]} 23... Ne6 {[%clk 0:01:22.5]} 24. Rf7 {[%clk 0:01:44.7]} 24...
Qxf7 {[%clk 0:01:14]} 25. Rxf7 {[%clk 0:01:44.7]} 25... Kxf7 {[%clk 0:01:15.9]}
26. exd5 {[%clk 0:01:45.9]} 26... Nf8 {[%clk 0:01:13]} 27. dxc6 {[%clk
0:01:43.4]} 27... bxc6 {[%clk 0:01:10.1]} 28. Ne4 {[%clk 0:01:40]} 28... c5
{[%clk 0:00:52.5]} 29. Nxc5 {[%clk 0:01:25.7]} 29... Kg7 {[%clk 0:00:46.4]} 30.
Qc4 {[%clk 0:01:05.9]} 30... Bf6 {[%clk 0:00:40.2]} 31. b4 {[%clk 0:00:52.6]}
31... Rad8 {[%clk 0:00:37.5]} 32. Bf2 {[%clk 0:00:50.8]} 32... Re7 {[%clk
0:00:29.6]} 33. Ne4 {[%clk 0:00:50.6]} 33... Be5 {[%clk 0:00:23.5]} 34. Bc5
{[%clk 0:00:33.3]} 34... Red7 {[%clk 0:00:23.9]} 35. Nf2 {[%clk 0:00:25.3]}
35... Be6 {[%clk 0:00:16]} 36. Qe4 {[%clk 0:00:24.6]} 36... Kf6 {[%clk
0:00:13.8]} 37. Qf3+ {[%clk 0:00:24.1]} 37... Kg7 {[%clk 0:00:13.9]} 38. Qe3
{[%clk 0:00:21.7]} 38... Rd5 {[%clk 0:00:05.1]} 39. Qe4 {[%clk 0:00:21.3]} 39...
Bf6 {[%clk 0:00:03.2]} 40. Qf3 {[%clk 0:00:20]} 40... Bg4 {[%clk 0:00:03.9]} 41.
Nxg4 {[%clk 0:00:20.1]} 41... hxg4 {[%clk 0:00:05.8]} 42. Qxg4+ {[%clk
0:00:21.2]} 42... Rg5 {[%clk 0:00:07.5]} 43. Qe4 {[%clk 0:00:21.6]} 43... Ng6
{[%clk 0:00:06.7]} 44. Kg1 {[%clk 0:00:21.8]} 44... Rh8 {[%clk 0:00:03.8]} 45.
a4 {[%clk 0:00:21.6]} 45... Rd8 {[%clk 0:00:04.3]} 46. Qb7+ {[%clk 0:00:22.1]}
46... Kh6 {[%clk 0:00:04.4]} 47. Qe4 {[%clk 0:00:22.6]} 47... Kg7 {[%clk
0:00:04.8]} 48. a5 {[%clk 0:00:23.8]} 48... Nf8 {[%clk 0:00:05.4]} 49. Bxa7
{[%clk 0:00:24.1]} 49... Rd7 {[%clk 0:00:05.7]} 50. Bc5 {[%clk 0:00:24.7]} 50...
Rxc5 {[%clk 0:00:06.8]} 51. bxc5 {[%clk 0:00:25.5]} 51... Bd4+ {[%clk
0:00:08.2]} 52. Kf1 {[%clk 0:00:26]} 52... Rf7+ {[%clk 0:00:07.5]} 53. Ke2
{[%clk 0:00:24.8]} 53... Bf6 {[%clk 0:00:08]} 54. Qd5 {[%clk 0:00:24.2]} 54...
Re7+ {[%clk 0:00:08]} 55. Kd1 {[%clk 0:00:24.7]} 55... Rd7 {[%clk 0:00:09.4]}
56. Qe4 {[%clk 0:00:25.7]} 56... Rd4 {[%clk 0:00:08.4]} 57. Qf5 {[%clk
0:00:26.5]} 57... Kf7 {[%clk 0:00:05.8]} 58. c6 {[%clk 0:00:26.7]} 58... Ne6
{[%clk 0:00:07.4]} 59. Qh7+ {[%clk 0:00:21.8]} 59... Bg7 {[%clk 0:00:08.2]} 60.
Kc2 {[%clk 0:00:22.6]} 60... Ke7 {[%clk 0:00:08.3]} 61. c7 {[%clk 0:00:21.9]}
61... Kd7 {[%clk 0:00:06.8]} 62. Qg8 {[%clk 0:00:21.8]} 62... Kxc7 {[%clk
0:00:02.6]} 63. Qxe6 {[%clk 0:00:22.1]} 63... Rd7 {[%clk 0:00:04.5]} 64. Qb6+
{[%clk 0:00:21.4]} 1-0

[Event "*** Titled Tuesday Blitz"]
[Site "Chess.com"]
[Date "2020.02.04"]
[Round "2"]
[White "Bulldog167"]
[Black "aa175"]
[Result "1/2-1/2"]
[WhiteElo "2667"]
[BlackElo "2272"]
[TimeControl "180+2"]
[EndTime "13:27:09 PST"]
[Termination "Game drawn by agreement"]

1. d4 {[%clk 0:03:01.9]} 1... Nf6 {[%clk 0:03:00.5]} 2. c4 {[%clk 0:03:03]} 2...
g6 {[%clk 0:03:01.5]} 3. Nc3 {[%clk 0:03:02.9]} 3... d5 {[%clk 0:03:02.8]} 4.
Nf3 {[%clk 0:03:01.9]} 4... Bg7 {[%clk 0:03:04.1]} 5. Bg5 {[%clk 0:03:03]} 5...
Ne4 {[%clk 0:03:03.7]} 6. cxd5 {[%clk 0:03:04.1]} 6... Nxg5 {[%clk 0:03:04.2]}
7. Nxg5 {[%clk 0:03:06]} 7... e6 {[%clk 0:03:05.6]} 8. Qd2 {[%clk 0:03:06.9]}
8... exd5 {[%clk 0:03:06.9]} 9. Qe3+ {[%clk 0:03:08.1]} 9... Kf8 {[%clk
0:03:08.4]} 10. Qf4 {[%clk 0:03:09.2]} 10... Bf5 {[%clk 0:02:39]} 11. g4 {[%clk
0:02:53.7]} 11... h6 {[%clk 0:02:40.1]} 12. Nxf7 {[%clk 0:02:45.6]} 12... Kxf7
{[%clk 0:02:34.7]} 13. gxf5 {[%clk 0:02:45.8]} 13... g5 {[%clk 0:02:27.1]} 14.
Qf3 {[%clk 0:02:37.6]} 14... Bxd4 {[%clk 0:01:47.3]} 15. Qxd5+ {[%clk
0:02:08.6]} 15... Qxd5 {[%clk 0:01:46.8]} 16. Nxd5 {[%clk 0:02:10.5]} 16... Bxb2
{[%clk 0:01:38.1]} 17. Rb1 {[%clk 0:02:09.9]} 17... Rd8 {[%clk 0:00:53.8]} 18.
e4 {[%clk 0:02:07.9]} 18... Be5 {[%clk 0:00:22.3]} 19. Rxb7 {[%clk 0:02:04.6]}
19... Nc6 {[%clk 0:00:23.4]} 20. Ba6 {[%clk 0:01:24.1]} 20... Rab8 {[%clk
0:00:14.6]} 21. O-O {[%clk 0:01:09.1]} 21... Rxb7 {[%clk 0:00:13.1]} 22. Bxb7
{[%clk 0:01:11]} 22... Nd4 {[%clk 0:00:14.7]} 23. Kg2 {[%clk 0:01:02.4]} 23...
Rb8 {[%clk 0:00:08.9]} 24. Ba6 {[%clk 0:01:03.4]} 24... Rb2 {[%clk 0:00:09.6]}
25. Bc4 {[%clk 0:01:03.7]} 25... Ke8 {[%clk 0:00:05.6]} 26. Ne3 {[%clk
0:00:55.1]} 26... Bf4 {[%clk 0:00:05.2]} 27. Ng4 {[%clk 0:00:52.3]} 27... Nc2
{[%clk 0:00:05.8]} 28. Bb3 {[%clk 0:00:47]} 28... h5 {[%clk 0:00:06.6]} 29. Nf6+
{[%clk 0:00:36.8]} 29... Ke7 {[%clk 0:00:08]} 30. Nd5+ {[%clk 0:00:36.3]} 30...
Kd6 {[%clk 0:00:09.4]} 31. f6 {[%clk 0:00:29.8]} 31... Ne3+ {[%clk 0:00:08.4]}
32. Nxe3 {[%clk 0:00:30.4]} 32... Bxe3 {[%clk 0:00:10.3]} 33. e5+ {[%clk
0:00:22.6]} 33... Kxe5 {[%clk 0:00:11.2]} 34. Re1 {[%clk 0:00:23.9]} 34... Rxf2+
{[%clk 0:00:09.2]} 35. Kg3 {[%clk 0:00:18.2]} 35... Kd4 {[%clk 0:00:08.6]} 36.
f7 {[%clk 0:00:18.8]} 36... h4+ {[%clk 0:00:07.8]} 37. Kg4 {[%clk 0:00:19.4]}
37... Rf4+ {[%clk 0:00:07]} 38. Kh5 {[%clk 0:00:19.8]} 38... Rf6 {[%clk
0:00:05.3]} 39. Rd1+ {[%clk 0:00:19.9]} 39... Ke5 {[%clk 0:00:04.8]} 40. Rd5+
{[%clk 0:00:20.4]} 40... Kf4 {[%clk 0:00:03.4]} 41. Rd8 {[%clk 0:00:19.7]} 41...
Bc5 {[%clk 0:00:03.6]} 42. h3 {[%clk 0:00:18.6]} 42... Bd6 {[%clk 0:00:04]} 43.
Re8 {[%clk 0:00:17.3]} 43... a5 {[%clk 0:00:04.4]} 44. a4 {[%clk 0:00:17.9]}
44... Kf5 {[%clk 0:00:02.9]} 45. Re2 {[%clk 0:00:15.5]} 45... Kf4 {[%clk
0:00:03.2]} 46. Bd5 {[%clk 0:00:12.5]} 46... Kf5 {[%clk 0:00:03.8]} 47. Bc4
{[%clk 0:00:08.4]} 47... Bf8 {[%clk 0:00:03.5]} 48. Bd3+ {[%clk 0:00:06.8]}
48... Kf4 {[%clk 0:00:03.3]} 49. Re4+ {[%clk 0:00:06.6]} 49... Kg3 {[%clk
0:00:04.5]} 50. Kxg5 {[%clk 0:00:06]} 50... Rxf7 {[%clk 0:00:04.8]} 51. Rg4+
{[%clk 0:00:06.9]} 51... Kf3 {[%clk 0:00:04.8]} 52. Kxh4 {[%clk 0:00:04.5]}
52... Rf4 {[%clk 0:00:05]} 53. Be2+ {[%clk 0:00:03.8]} 53... Ke4 {[%clk
0:00:03.9]} 54. Kg3 {[%clk 0:00:04.4]} 54... Bd6 {[%clk 0:00:03.4]} 55. Rxf4+
{[%clk 0:00:04.1]} 55... Bxf4+ {[%clk 0:00:05.3]} 56. Kg4 {[%clk 0:00:06]} 56...
Ke5 {[%clk 0:00:05.3]} 57. h4 {[%clk 0:00:07.3]} 57... Bd2 {[%clk 0:00:05.8]}
58. Kh5 {[%clk 0:00:08.5]} 58... Kf6 {[%clk 0:00:06.9]} 59. Kg4 {[%clk 0:00:10]}
59... c5 {[%clk 0:00:07.3]} 60. h5 {[%clk 0:00:11.9]} 60... Kg7 {[%clk
0:00:07.5]} 61. Kf5 {[%clk 0:00:13.1]} 61... Kh6 {[%clk 0:00:06.9]} 62. Ke4
{[%clk 0:00:14.6]} 62... c4 {[%clk 0:00:07.1]} 63. Kd4 {[%clk 0:00:13.2]} 63...
c3 {[%clk 0:00:03.7]} 64. Bd1 {[%clk 0:00:10.1]} 64... c2 {[%clk 0:00:04.4]} 65.
Bxc2 {[%clk 0:00:10.7]} 65... Kxh5 {[%clk 0:00:05.8]} 1/2-1/2

[Event "*** Titled Tuesday Blitz"]
[Site "Chess.com"]
[Date "2020.02.04"]
[Round "2"]
[White "Blitzstream"]
[Black "KRASAVCHIK2002"]
[Result "1/2-1/2"]
[WhiteElo "2724"]
[BlackElo "2511"]
[TimeControl "180+2"]
[EndTime "13:27:10 PST"]
[Termination "Game drawn by agreement"]

1. d4 {[%clk 0:03:01.9]} 1... Nf6 {[%clk 0:03:00.3]} 2. Bg5 {[%clk 0:03:02.9]}
2... e6 {[%clk 0:02:53.4]} 3. e4 {[%clk 0:03:02.6]} 3... h6 {[%clk 0:02:54.8]}
4. Bxf6 {[%clk 0:03:03.6]} 4... Qxf6 {[%clk 0:02:56.7]} 5. c3 {[%clk 0:03:05.3]}
5... d6 {[%clk 0:02:55.5]} 6. Bd3 {[%clk 0:03:06.1]} 6... g6 {[%clk 0:02:56.3]}
7. Ne2 {[%clk 0:03:07.4]} 7... Bg7 {[%clk 0:02:57.6]} 8. f4 {[%clk 0:03:08.3]}
8... c5 {[%clk 0:02:56.7]} 9. dxc5 {[%clk 0:03:01.7]} 9... dxc5 {[%clk
0:02:58.6]} 10. Nd2 {[%clk 0:03:02.6]} 10... O-O {[%clk 0:02:22.1]} 11. e5
{[%clk 0:03:00.5]} 11... Qd8 {[%clk 0:02:20.9]} 12. Ne4 {[%clk 0:03:01.2]} 12...
b6 {[%clk 0:02:16.6]} 13. O-O {[%clk 0:02:58]} 13... Ba6 {[%clk 0:02:13.5]} 14.
Nd6 {[%clk 0:02:45.3]} 14... Bxd3 {[%clk 0:02:08.8]} 15. Qxd3 {[%clk 0:02:47.2]}
15... Nc6 {[%clk 0:02:06.9]} 16. Rad1 {[%clk 0:02:44.3]} 16... Ne7 {[%clk
0:02:02.5]} 17. Ng3 {[%clk 0:02:30.2]} 17... Qc7 {[%clk 0:01:24.7]} 18. Nge4
{[%clk 0:02:28.5]} 18... Rad8 {[%clk 0:01:20]} 19. Qf3 {[%clk 0:02:27.9]} 19...
Rd7 {[%clk 0:01:13.1]} 20. Rd2 {[%clk 0:02:21.1]} 20... Rfd8 {[%clk 0:01:12.1]}
21. Rfd1 {[%clk 0:02:22.2]} 21... a6 {[%clk 0:01:10.6]} 22. Qf2 {[%clk
0:02:07.4]} 22... Nf5 {[%clk 0:01:08.9]} 23. Nxf5 {[%clk 0:02:02.4]} 23... gxf5
{[%clk 0:00:52.7]} 24. Nf6+ {[%clk 0:01:45.3]} 24... Bxf6 {[%clk 0:00:50.5]} 25.
exf6 {[%clk 0:01:46.8]} 25... Rxd2 {[%clk 0:00:17.5]} 26. Qg3+ {[%clk
0:01:46.9]} 26... Kf8 {[%clk 0:00:18.7]} 27. Qg7+ {[%clk 0:01:47.9]} 27... Ke8
{[%clk 0:00:20]} 28. Qg8+ {[%clk 0:00:57.5]} 28... Kd7 {[%clk 0:00:20.3]} 29.
Rxd2+ {[%clk 0:00:57]} 29... Kc8 {[%clk 0:00:21]} 30. Rxd8+ {[%clk 0:00:54.6]}
30... Qxd8 {[%clk 0:00:22.9]} 31. Qxd8+ {[%clk 0:00:31.4]} 31... Kxd8 {[%clk
0:00:24.8]} 32. Kf2 {[%clk 0:00:33.3]} 32... Kd7 {[%clk 0:00:24.9]} 33. Kg3
{[%clk 0:00:34.4]} 33... Kd6 {[%clk 0:00:22.3]} 34. Kh4 {[%clk 0:00:35.6]} 34...
e5 {[%clk 0:00:23.5]} 35. fxe5+ {[%clk 0:00:37.5]} 35... Kxe5 {[%clk 0:00:25.4]}
36. Kh5 {[%clk 0:00:39.4]} 36... Kxf6 {[%clk 0:00:26.7]} 37. Kxh6 {[%clk
0:00:41.3]} 37... f4 {[%clk 0:00:25.3]} 38. h4 {[%clk 0:00:40.6]} 38... Kf5
{[%clk 0:00:23.7]} 39. Kh5 {[%clk 0:00:37.7]} 39... c4 {[%clk 0:00:23.1]} 40. b3
{[%clk 0:00:33.7]} 40... b5 {[%clk 0:00:23.1]} 41. b4 {[%clk 0:00:33.6]} 41...
f6 {[%clk 0:00:18.2]} 42. Kh6 {[%clk 0:00:34.2]} 42... Kg4 {[%clk 0:00:17.6]}
43. h5 {[%clk 0:00:35.6]} 43... Kg3 {[%clk 0:00:16.6]} 44. Kg6 {[%clk
0:00:36.7]} 44... Kxg2 {[%clk 0:00:17.6]} 45. h6 {[%clk 0:00:38.4]} 45... f3
{[%clk 0:00:19]} 46. h7 {[%clk 0:00:40.2]} 46... f2 {[%clk 0:00:20.9]} 47. h8=Q
{[%clk 0:00:41.9]} 47... f1=Q {[%clk 0:00:22.4]} 48. Qa8+ {[%clk 0:00:35.6]}
48... Qf3 {[%clk 0:00:23.2]} 49. Qxa6 {[%clk 0:00:36.7]} 49... Qd3+ {[%clk
0:00:18.2]} 50. Kxf6 {[%clk 0:00:34.1]} 50... Qxc3+ {[%clk 0:00:18.8]} 51. Ke6
{[%clk 0:00:32.3]} 51... Qxb4 {[%clk 0:00:19.8]} 52. Kd5 {[%clk 0:00:30.6]}
52... c3 {[%clk 0:00:19.2]} 53. Qg6+ {[%clk 0:00:11.2]} 53... Kf2 {[%clk
0:00:18]} 54. Qc2+ {[%clk 0:00:11.7]} 54... Ke3 {[%clk 0:00:16.4]} 55. Qc1+
{[%clk 0:00:12.7]} 55... Kf2 {[%clk 0:00:12.6]} 56. Qc2+ {[%clk 0:00:12.5]}
56... Kg3 {[%clk 0:00:11.6]} 57. Qd3+ {[%clk 0:00:12.5]} 57... Kf4 {[%clk
0:00:08.6]} 58. Qf1+ {[%clk 0:00:13.2]} 58... Kg5 {[%clk 0:00:08.4]} 59. Qg1+
{[%clk 0:00:13.2]} 59... Kf6 {[%clk 0:00:02.3]} 60. Qb6+ {[%clk 0:00:13.8]}
60... Kf7 {[%clk 0:00:03.3]} 61. Qe6+ {[%clk 0:00:12.3]} 61... Kf8 {[%clk
0:00:04.1]} 62. Qc8+ {[%clk 0:00:13]} 62... Ke7 {[%clk 0:00:04.8]} 63. Qe6+
{[%clk 0:00:13.9]} 63... Kd8 {[%clk 0:00:06]} 64. Qb6+ {[%clk 0:00:15.1]} 64...
Kc8 {[%clk 0:00:06.9]} 65. Qc6+ {[%clk 0:00:15.7]} 65... Kd8 {[%clk 0:00:08.2]}
66. Qb6+ {[%clk 0:00:16]} 66... Ke7 {[%clk 0:00:09.1]} 67. Qe6+ {[%clk
0:00:17.1]} 67... Kf8 {[%clk 0:00:09.8]} 68. Qc8+ {[%clk 0:00:18.2]} 1/2-1/2

[Event "*** Titled Tuesday Blitz"]
[Site "Chess.com"]
[Date "2020.02.04"]
[Round "2"]
[White "Lagmantr"]
[Black "WPWPWP-2015"]
[Result "1-0"]
[WhiteElo "2756"]
[BlackElo "2524"]
[TimeControl "180+2"]
[EndTime "13:27:16 PST"]
[Termination "Lagmantr won by checkmate"]

1. e4 {[%clk 0:03:01.3]} 1... e5 {[%clk 0:02:59.4]} 2. Nf3 {[%clk 0:03:02.7]}
2... Nc6 {[%clk 0:03:00.2]} 3. Nc3 {[%clk 0:03:03.8]} 3... Nf6 {[%clk
0:03:00.9]} 4. Be2 {[%clk 0:03:05.1]} 4... Be7 {[%clk 0:03:00.8]} 5. O-O {[%clk
0:03:05.7]} 5... O-O {[%clk 0:03:01.5]} 6. d4 {[%clk 0:03:06.8]} 6... d6 {[%clk
0:02:59.2]} 7. Bg5 {[%clk 0:02:49.5]} 7... h6 {[%clk 0:02:53.8]} 8. dxe5 {[%clk
0:02:47.2]} 8... hxg5 {[%clk 0:02:43.8]} 9. exf6 {[%clk 0:02:48]} 9... Bxf6
{[%clk 0:02:45]} 10. Qd2 {[%clk 0:02:22.1]} 10... g4 {[%clk 0:02:45.5]} 11. Ne1
{[%clk 0:02:22.8]} 11... Bg5 {[%clk 0:02:36]} 12. Qd1 {[%clk 0:02:23.3]} 12...
Ne5 {[%clk 0:02:33.2]} 13. Nd3 {[%clk 0:02:23.3]} 13... Qd7 {[%clk 0:02:16.6]}
14. Nxe5 {[%clk 0:02:13.4]} 14... dxe5 {[%clk 0:02:17.2]} 15. Qxd7 {[%clk
0:02:14.9]} 15... Bxd7 {[%clk 0:02:18]} 16. Rad1 {[%clk 0:02:12.1]} 16... Be6
{[%clk 0:02:17.4]} 17. Nd5 {[%clk 0:02:11.3]} 17... Rac8 {[%clk 0:02:14.2]} 18.
b3 {[%clk 0:02:02.1]} 18... c6 {[%clk 0:02:14.2]} 19. Nb4 {[%clk 0:02:01.8]}
19... Rfd8 {[%clk 0:02:10.1]} 20. Nd3 {[%clk 0:02:02.6]} 20... f6 {[%clk
0:01:38.7]} 21. Nc5 {[%clk 0:02:00.9]} 21... Kf7 {[%clk 0:01:04.1]} 22. Nxe6
{[%clk 0:01:58.5]} 22... Kxe6 {[%clk 0:01:02.5]} 23. Bxg4+ {[%clk 0:01:59.3]}
23... Ke7 {[%clk 0:01:03.4]} 24. Bxc8 {[%clk 0:02:00.3]} 24... Rxc8 {[%clk
0:01:04.8]} 25. Rd3 {[%clk 0:02:00.6]} 25... Rc7 {[%clk 0:01:01.4]} 26. Rfd1
{[%clk 0:02:01.4]} 26... c5 {[%clk 0:00:59.8]} 27. c4 {[%clk 0:02:00.8]} 27...
g6 {[%clk 0:00:53.4]} 28. Rd8 {[%clk 0:02:01.1]} 28... Bh6 {[%clk 0:00:52.2]}
29. Rh8 {[%clk 0:02:01.6]} 29... Bg7 {[%clk 0:00:52.6]} 30. Ra8 {[%clk
0:01:58.4]} 30... b6 {[%clk 0:00:44.5]} 31. Rdd8 {[%clk 0:01:59]} 31... f5
{[%clk 0:00:44.8]} 32. f3 {[%clk 0:01:50.1]} 32... Bf6 {[%clk 0:00:43.9]} 33.
Kf2 {[%clk 0:01:42.8]} 33... Ke6 {[%clk 0:00:31]} 34. Re8+ {[%clk 0:01:33.8]}
34... Be7 {[%clk 0:00:30.9]} 35. Ke2 {[%clk 0:01:31.1]} 35... Rd7 {[%clk
0:00:30.2]} 36. Rh8 {[%clk 0:01:25.3]} 36... Bf6 {[%clk 0:00:29.6]} 37. Rh6
{[%clk 0:00:53.9]} 37... fxe4 {[%clk 0:00:17.4]} 38. Rxg6 {[%clk 0:00:50.5]}
38... exf3+ {[%clk 0:00:17.9]} 39. gxf3 {[%clk 0:00:52.4]} 39... Kf5 {[%clk
0:00:12.6]} 40. Rh6 {[%clk 0:00:47]} 40... Rf7 {[%clk 0:00:09.9]} 41. h4 {[%clk
0:00:45]} 41... Kf4 {[%clk 0:00:07]} 42. h5 {[%clk 0:00:38.3]} 42... Bg5 {[%clk
0:00:05.6]} 43. Rg6 {[%clk 0:00:37.9]} 43... Kf5 {[%clk 0:00:04.6]} 44. Rag8
{[%clk 0:00:27.8]} 44... Bf4 {[%clk 0:00:05.2]} 45. h6 {[%clk 0:00:25.8]} 45...
Rd7 {[%clk 0:00:04.9]} 46. Rc6 {[%clk 0:00:16.5]} 46... Rd2+ {[%clk 0:00:04.9]}
47. Ke1 {[%clk 0:00:17.7]} 47... Rh2 {[%clk 0:00:05.4]} 48. Rh8 {[%clk
0:00:18.6]} 48... Rh1+ {[%clk 0:00:04.2]} 49. Kf2 {[%clk 0:00:19.8]} 49... Rh2+
{[%clk 0:00:05.1]} 50. Kg1 {[%clk 0:00:21.1]} 50... Rh3 {[%clk 0:00:06.1]} 51.
h7 {[%clk 0:00:22.2]} 51... e4 {[%clk 0:00:03.8]} 52. Rf8+ {[%clk 0:00:23.1]}
52... Ke5 {[%clk 0:00:04.9]} 53. h8=Q+ {[%clk 0:00:23.9]} 53... Rxh8 {[%clk
0:00:05.8]} 54. Rxh8 {[%clk 0:00:25.8]} 54... exf3 {[%clk 0:00:06.8]} 55. Kf2
{[%clk 0:00:27.2]} 55... Ke4 {[%clk 0:00:08.3]} 56. Re6+ {[%clk 0:00:27.9]}
56... Kd3 {[%clk 0:00:08.5]} 57. Rh3 {[%clk 0:00:28.3]} 57... Kc2 {[%clk
0:00:08]} 58. Rxf3 {[%clk 0:00:29.7]} 58... Bg5 {[%clk 0:00:09.1]} 59. Re2+
{[%clk 0:00:31]} 59... Kd1 {[%clk 0:00:09.3]} 60. Rd3+ {[%clk 0:00:30.3]} 60...
Kc1 {[%clk 0:00:10.2]} 61. Rh3 {[%clk 0:00:31.8]} 61... Kb1 {[%clk 0:00:08.9]}
62. Rh1+ {[%clk 0:00:32.8]} 62... Bc1 {[%clk 0:00:10.3]} 63. a4 {[%clk 0:00:28]}
63... a5 {[%clk 0:00:09.9]} 64. Rf1 {[%clk 0:00:26.4]} 64... Ka1 {[%clk
0:00:09.8]} 65. Rxc1# {[%clk 0:00:27.1]} 1-0

[Event "*** Titled Tuesday Blitz"]
[Site "Chess.com"]
[Date "2020.02.04"]
[Round "2"]
[White "obliviate12"]
[Black "vova-79"]
[Result "1-0"]
[WhiteElo "2846"]
[BlackElo "2458"]
[TimeControl "180+2"]
[EndTime "13:27:19 PST"]
[Termination "obliviate12 won by resignation"]

1. e4 {[%clk 0:03:00.9]} 1... e6 {[%clk 0:02:59.9]} 2. d4 {[%clk 0:03:00.4]}
2... d5 {[%clk 0:03:00.5]} 3. Nc3 {[%clk 0:03:02.3]} 3... dxe4 {[%clk
0:03:01.2]} 4. Nxe4 {[%clk 0:03:03.1]} 4... Nd7 {[%clk 0:03:02.7]} 5. Nf3 {[%clk
0:03:02.6]} 5... Ngf6 {[%clk 0:03:03.8]} 6. Nxf6+ {[%clk 0:02:56.6]} 6... Nxf6
{[%clk 0:03:04.3]} 7. g3 {[%clk 0:02:58.1]} 7... b6 {[%clk 0:03:02.4]} 8. Bb5+
{[%clk 0:02:45.2]} 8... Bd7 {[%clk 0:03:01.3]} 9. a4 {[%clk 0:02:45.3]} 9... a6
{[%clk 0:03:00.9]} 10. Be2 {[%clk 0:02:44.3]} 10... Bc6 {[%clk 0:03:01.8]} 11.
O-O {[%clk 0:02:43.3]} 11... Bd6 {[%clk 0:03:00.6]} 12. Ne5 {[%clk 0:02:36.1]}
12... Bxe5 {[%clk 0:03:00.7]} 13. dxe5 {[%clk 0:02:38]} 13... Qd5 {[%clk
0:03:01]} 14. Qxd5 {[%clk 0:02:38]} 14... Nxd5 {[%clk 0:03:01.8]} 15. a5 {[%clk
0:02:29]} 15... b5 {[%clk 0:03:00.1]} 16. Bd2 {[%clk 0:02:22.8]} 16... Ne7
{[%clk 0:02:45.3]} 17. Rfc1 {[%clk 0:02:20.2]} 17... O-O-O {[%clk 0:02:14.5]}
18. Bg5 {[%clk 0:02:12.6]} 18... Rhe8 {[%clk 0:02:08.8]} 19. c4 {[%clk
0:02:05.7]} 19... h6 {[%clk 0:01:51.4]} 20. Bxe7 {[%clk 0:01:22.5]} 20... Rxe7
{[%clk 0:01:53.3]} 21. cxb5 {[%clk 0:01:24.4]} 21... Bxb5 {[%clk 0:01:52.6]} 22.
Bxb5 {[%clk 0:01:25.4]} 22... axb5 {[%clk 0:01:53.3]} 23. a6 {[%clk 0:00:32.8]}
23... Kb8 {[%clk 0:01:49.9]} 24. f4 {[%clk 0:00:30.1]} 24... Ka7 {[%clk
0:01:00.4]} 25. Rc5 {[%clk 0:00:25.2]} 25... Rd5 {[%clk 0:00:59]} 26. Rxd5
{[%clk 0:00:19.4]} 26... exd5 {[%clk 0:00:58.9]} 27. Ra5 {[%clk 0:00:16.5]}
27... c6 {[%clk 0:00:55.8]} 28. Kf2 {[%clk 0:00:16.4]} 28... Kb6 {[%clk
0:00:54.1]} 29. b4 {[%clk 0:00:16.3]} 29... Ra7 {[%clk 0:00:51.1]} 30. Ke3
{[%clk 0:00:14]} 30... c5 {[%clk 0:00:31]} 31. Ra1 {[%clk 0:00:14.1]} 31... cxb4
{[%clk 0:00:28.7]} 32. Kd4 {[%clk 0:00:14.2]} 32... Rxa6 {[%clk 0:00:26.2]} 33.
Rb1 {[%clk 0:00:13.6]} 33... Ra2 {[%clk 0:00:21]} 34. Kxd5 {[%clk 0:00:14]}
34... Rd2+ {[%clk 0:00:20.5]} 35. Ke4 {[%clk 0:00:15]} 35... Kc5 {[%clk
0:00:19.8]} 36. Rc1+ {[%clk 0:00:16.1]} 36... Kb6 {[%clk 0:00:20.3]} 37. Rb1
{[%clk 0:00:18]} 37... Kc5 {[%clk 0:00:20.7]} 38. f5 {[%clk 0:00:17]} 38... Re2+
{[%clk 0:00:18.3]} 39. Kf4 {[%clk 0:00:17.3]} 39... Kc4 {[%clk 0:00:18.7]} 40.
Rc1+ {[%clk 0:00:15.5]} 40... Kd4 {[%clk 0:00:19]} 41. Rd1+ {[%clk 0:00:15.4]}
41... Kc3 {[%clk 0:00:19.1]} 42. Rc1+ {[%clk 0:00:16.5]} 42... Kb2 {[%clk
0:00:17.9]} 43. Rc7 {[%clk 0:00:17.4]} 43... b3 {[%clk 0:00:13.4]} 44. Rxf7
{[%clk 0:00:18.1]} 44... Kc1 {[%clk 0:00:13.2]} 45. Rc7+ {[%clk 0:00:17.1]}
45... Rc2 {[%clk 0:00:12.7]} 46. Rb7 {[%clk 0:00:18.4]} 46... b2 {[%clk
0:00:11.8]} 47. Rxb5 {[%clk 0:00:18.8]} 47... Rf2+ {[%clk 0:00:09.7]} 48. Ke4
{[%clk 0:00:16]} 48... Re2+ {[%clk 0:00:09.1]} 49. Kd5 {[%clk 0:00:15.3]} 49...
Rd2+ {[%clk 0:00:07.8]} 50. Ke6 {[%clk 0:00:15.5]} 50... b1=Q {[%clk 0:00:06.5]}
51. Rxb1+ {[%clk 0:00:16.6]} 51... Kxb1 {[%clk 0:00:08.4]} 52. Kf7 {[%clk
0:00:16.8]} 52... Rf2 {[%clk 0:00:08.3]} 53. g4 {[%clk 0:00:17.2]} 53... Rxh2
{[%clk 0:00:08.3]} 54. e6 {[%clk 0:00:13]} 54... h5 {[%clk 0:00:08.7]} 55. e7
{[%clk 0:00:11.2]} 55... Re2 {[%clk 0:00:07.5]} 56. gxh5 {[%clk 0:00:12.3]}
56... Kc2 {[%clk 0:00:07.2]} 57. e8=Q {[%clk 0:00:11.8]} 57... Rxe8 {[%clk
0:00:06.9]} 58. Kxe8 {[%clk 0:00:13.7]} 58... Kd3 {[%clk 0:00:08.5]} 59. Kf7
{[%clk 0:00:15]} 59... Ke4 {[%clk 0:00:07.7]} 60. Kxg7 {[%clk 0:00:16.2]} 1-0